{"text_format":"1","workbook":"xlsx","n_sheets":1,"sheets":["KT Books emails"],"not_rendered":{"charts":0,"images":2,"macros":1,"external_links":0,"defined_names":0,"comments":0,"pivot_tables":0},"unopened":[],"bounds":{"document_bytes":16777216,"sheet_cells":100000,"rows_first":2000,"rows_last":500,"rows_between":2000,"halvings":0,"cell_chars":16384,"cell_head_chars":4096},"cells_cut":0,"cells_raw":0,"read":"whole","date_system":"1900"}

{"sheet":"KT Books emails","index":0,"n_rows":157,"n_cols":17,"rows_kept":157,"cut":false,"hidden":false,"merged":[]}
["Instructions:  ",null,"!!SAVE A COPY OF THIS SHEET AND WORK IN THE SAVED COPY!!"]
[null,1,"Copy and paste Email addresses, activation codesand activation links into the columns below"]
[null,2,"IMPORTANT - remove email hyperlinks: Select the email addresses, right click and select 'Remove Hyperlinks'"]
[null,3,"Click this button to trigger the macro"]
[null,4,"The 'KT Books Code Emails' box will appear"]
[]
[]
[]
[]
[]
[]
[null,5,"Click/drag from A16 down-and-across to select cells with email addresses, activation codes, and activation links to be sent (A:E across)"]
[null,6,"When you click OK, the emails will be sent."]
[null,null,"You will see them appear briefly, then disapper (as the macro sends them)",null,null,null,null,null,null,null,"Only edit the cells in YELLOW - do not alter the cells below that have writing in gray","!!DO NOT CHANGE OR ALTER THESE CELLS!!"]
[null,null,"Emails","CODE","LINK",null,null,null,null,null,"cc address:","Vimeo link","iTunes","Google Play","KT email","Email Subject","Contact email"]
[1,null,null,null,null,"https://www.kepner-tregoe.com/?LinkServID=D35F9B4B-FB6E-D821-DC67CE973484F79C","https://my.sharedbook.com/serve/nm/kt/login.html",null,null,null,null,"https://vimeo.com/kepnertregoe/review/315887045/c186f9940b","https://itunes.apple.com/us/app/kt-books/id1343296030?mt=8","https://play.google.com/store/apps/details?id=com.KTBooks.packs","KTProductSupport@kepner-tregoe.com","Your KT Books Registration Code","ktbooks@kepner-tregoe.com"]
[2,null,null,null,null,"https://www.kepner-tregoe.com/?LinkServID=D35F9B4B-FB6E-D821-DC67CE973484F79C","https://my.sharedbook.com/serve/nm/kt/login.html",null,null,null,{"$f":"K16","v":0},{"$f":"L16","v":"https://vimeo.com/kepnertregoe/review/315887045/c186f9940b"},"https://itunes.apple.com/us/app/kt-books/id1343296030?mt=8","https://play.google.com/store/apps/details?id=com.KTBooks.packs","KTProductSupport@kepner-tregoe.com",{"$f":"P16","v":"Your KT Books Registration Code"},{"$f":"Q16","v":"ktbooks@kepner-tregoe.com"}]
[3,null,null,null,null,"https://www.kepner-tregoe.com/?LinkServID=D35F9B4B-FB6E-D821-DC67CE973484F79C","https://my.sharedbook.com/serve/nm/kt/login.html",null,null,null,{"$f":"K17","v":0},{"$f":"L17","v":"https://vimeo.com/kepnertregoe/review/315887045/c186f9940b"},{"$f":"M17","v":"https://itunes.apple.com/us/app/kt-books/id1343296030?mt=8"},{"$f":"N17","v":"https://play.google.com/store/apps/details?id=com.KTBooks.packs"},{"$f":"O17","v":"KTProductSupport@kepner-tregoe.com"},"Your KT Books Registration Code",{"$f":"Q17","v":"ktbooks@kepner-tregoe.com"}]
[4,null,null,null,null,"https://www.kepner-tregoe.com/?LinkServID=D35F9B4B-FB6E-D821-DC67CE973484F79C","https://my.sharedbook.com/serve/nm/kt/login.html",null,null,null,0,"https://vimeo.com/kepnertregoe/review/315887045/c186f9940b","https://itunes.apple.com/us/app/kt-books/id1343296030?mt=8","https://play.google.com/store/apps/details?id=com.KTBooks.packs","KTProductSupport@kepner-tregoe.com","Your KT Books Registration Code","ktbooks@kepner-tregoe.com"]
[5,null,null,null,null,"https://www.kepner-tregoe.com/?LinkServID=D35F9B4B-FB6E-D821-DC67CE973484F79C","https://my.sharedbook.com/serve/nm/kt/login.html",null,null,null,0,"https://vimeo.com/kepnertregoe/review/315887045/c186f9940b","https://itunes.apple.com/us/app/kt-books/id1343296030?mt=8","https://play.google.com/store/apps/details?id=com.KTBooks.packs","KTProductSupport@kepner-tregoe.com","Your KT Books Registration Code","ktbooks@kepner-tregoe.com"]
[6,null,null,null,null,"https://www.kepner-tregoe.com/?LinkServID=D35F9B4B-FB6E-D821-DC67CE973484F79C","https://my.sharedbook.com/serve/nm/kt/login.html",null,null,null,0,"https://vimeo.com/kepnertregoe/review/315887045/c186f9940b","https://itunes.apple.com/us/app/kt-books/id1343296030?mt=8","https://play.google.com/store/apps/details?id=com.KTBooks.packs","KTProductSupport@kepner-tregoe.com","Your KT Books Registration Code","ktbooks@kepner-tregoe.com"]
[7,null,null,null,null,"https://www.kepner-tregoe.com/?LinkServID=D35F9B4B-FB6E-D821-DC67CE973484F79C","https://my.sharedbook.com/serve/nm/kt/login.html",null,null,null,0,"https://vimeo.com/kepnertregoe/review/315887045/c186f9940b","https://itunes.apple.com/us/app/kt-books/id1343296030?mt=8","https://play.google.com/store/apps/details?id=com.KTBooks.packs","KTProductSupport@kepner-tregoe.com","Your KT Books Registration Code","ktbooks@kepner-tregoe.com"]
[8,null,null,null,null,"https://www.kepner-tregoe.com/?LinkServID=D35F9B4B-FB6E-D821-DC67CE973484F79C","https://my.sharedbook.com/serve/nm/kt/login.html",null,null,null,0,"https://vimeo.com/kepnertregoe/review/315887045/c186f9940b","https://itunes.apple.com/us/app/kt-books/id1343296030?mt=8","https://play.google.com/store/apps/details?id=com.KTBooks.packs","KTProductSupport@kepner-tregoe.com","Your KT Books Registration Code","ktbooks@kepner-tregoe.com"]
[9,null,null,null,null,"https://www.kepner-tregoe.com/?LinkServID=D35F9B4B-FB6E-D821-DC67CE973484F79C","https://my.sharedbook.com/serve/nm/kt/login.html",null,null,null,0,"https://vimeo.com/kepnertregoe/review/315887045/c186f9940b","https://itunes.apple.com/us/app/kt-books/id1343296030?mt=8","https://play.google.com/store/apps/details?id=com.KTBooks.packs","KTProductSupport@kepner-tregoe.com","Your KT Books Registration Code","ktbooks@kepner-tregoe.com"]
[10,null,null,null,null,"https://www.kepner-tregoe.com/?LinkServID=D35F9B4B-FB6E-D821-DC67CE973484F79C","https://my.sharedbook.com/serve/nm/kt/login.html",null,null,null,0,"https://vimeo.com/kepnertregoe/review/315887045/c186f9940b","https://itunes.apple.com/us/app/kt-books/id1343296030?mt=8","https://play.google.com/store/apps/details?id=com.KTBooks.packs","KTProductSupport@kepner-tregoe.com","Your KT Books Registration Code","ktbooks@kepner-tregoe.com"]
[11,null,null,null,null,"https://www.kepner-tregoe.com/?LinkServID=D35F9B4B-FB6E-D821-DC67CE973484F79C","https://my.sharedbook.com/serve/nm/kt/login.html",null,null,null,0,"https://vimeo.com/kepnertregoe/review/315887045/c186f9940b","https://itunes.apple.com/us/app/kt-books/id1343296030?mt=8","https://play.google.com/store/apps/details?id=com.KTBooks.packs","KTProductSupport@kepner-tregoe.com","Your KT Books Registration Code","ktbooks@kepner-tregoe.com"]
[12,null,null,null,null,"https://www.kepner-tregoe.com/?LinkServID=D35F9B4B-FB6E-D821-DC67CE973484F79C","https://my.sharedbook.com/serve/nm/kt/login.html",null,null,null,0,"https://vimeo.com/kepnertregoe/review/315887045/c186f9940b","https://itunes.apple.com/us/app/kt-books/id1343296030?mt=8","https://play.google.com/store/apps/details?id=com.KTBooks.packs","KTProductSupport@kepner-tregoe.com","Your KT Books Registration Code","ktbooks@kepner-tregoe.com"]
[13,null,null,null,null,"https://www.kepner-tregoe.com/?LinkServID=D35F9B4B-FB6E-D821-DC67CE973484F79C","https://my.sharedbook.com/serve/nm/kt/login.html",null,null,null,0,"https://vimeo.com/kepnertregoe/review/315887045/c186f9940b","https://itunes.apple.com/us/app/kt-books/id1343296030?mt=8","https://play.google.com/store/apps/details?id=com.KTBooks.packs","KTProductSupport@kepner-tregoe.com","Your KT Books Registration Code","ktbooks@kepner-tregoe.com"]
[14,null,null,null,null,"https://www.kepner-tregoe.com/?LinkServID=D35F9B4B-FB6E-D821-DC67CE973484F79C","https://my.sharedbook.com/serve/nm/kt/login.html",null,null,null,0,"https://vimeo.com/kepnertregoe/review/315887045/c186f9940b","https://itunes.apple.com/us/app/kt-books/id1343296030?mt=8","https://play.google.com/store/apps/details?id=com.KTBooks.packs","KTProductSupport@kepner-tregoe.com","Your KT Books Registration Code","ktbooks@kepner-tregoe.com"]
[15,null,null,null,null,"https://www.kepner-tregoe.com/?LinkServID=D35F9B4B-FB6E-D821-DC67CE973484F79C","https://my.sharedbook.com/serve/nm/kt/login.html",null,null,null,0,"https://vimeo.com/kepnertregoe/review/315887045/c186f9940b","https://itunes.apple.com/us/app/kt-books/id1343296030?mt=8","https://play.google.com/store/apps/details?id=com.KTBooks.packs","KTProductSupport@kepner-tregoe.com","Your KT Books Registration Code","ktbooks@kepner-tregoe.com"]
[16,null,null,null,null,"https://www.kepner-tregoe.com/?LinkServID=D35F9B4B-FB6E-D821-DC67CE973484F79C","https://my.sharedbook.com/serve/nm/kt/login.html",null,null,null,0,"https://vimeo.com/kepnertregoe/review/315887045/c186f9940b","https://itunes.apple.com/us/app/kt-books/id1343296030?mt=8","https://play.google.com/store/apps/details?id=com.KTBooks.packs","KTProductSupport@kepner-tregoe.com","Your KT Books Registration Code","ktbooks@kepner-tregoe.com"]
[17,null,null,null,null,"https://www.kepner-tregoe.com/?LinkServID=D35F9B4B-FB6E-D821-DC67CE973484F79C","https://my.sharedbook.com/serve/nm/kt/login.html",null,null,null,0,"https://vimeo.com/kepnertregoe/review/315887045/c186f9940b","https://itunes.apple.com/us/app/kt-books/id1343296030?mt=8","https://play.google.com/store/apps/details?id=com.KTBooks.packs","KTProductSupport@kepner-tregoe.com","Your KT Books Registration Code","ktbooks@kepner-tregoe.com"]
[18,null,null,null,null,"https://www.kepner-tregoe.com/?LinkServID=D35F9B4B-FB6E-D821-DC67CE973484F79C","https://my.sharedbook.com/serve/nm/kt/login.html",null,null,null,0,"https://vimeo.com/kepnertregoe/review/315887045/c186f9940b","https://itunes.apple.com/us/app/kt-books/id1343296030?mt=8","https://play.google.com/store/apps/details?id=com.KTBooks.packs","KTProductSupport@kepner-tregoe.com","Your KT Books Registration Code","ktbooks@kepner-tregoe.com"]
[19,null,null,null,null,"https://www.kepner-tregoe.com/?LinkServID=D35F9B4B-FB6E-D821-DC67CE973484F79C","https://my.sharedbook.com/serve/nm/kt/login.html",null,null,null,0,"https://vimeo.com/kepnertregoe/review/315887045/c186f9940b","https://itunes.apple.com/us/app/kt-books/id1343296030?mt=8","https://play.google.com/store/apps/details?id=com.KTBooks.packs","KTProductSupport@kepner-tregoe.com","Your KT Books Registration Code","ktbooks@kepner-tregoe.com"]
[20,null,null,null,null,"https://www.kepner-tregoe.com/?LinkServID=D35F9B4B-FB6E-D821-DC67CE973484F79C","https://my.sharedbook.com/serve/nm/kt/login.html",null,null,null,0,"https://vimeo.com/kepnertregoe/review/315887045/c186f9940b","https://itunes.apple.com/us/app/kt-books/id1343296030?mt=8","https://play.google.com/store/apps/details?id=com.KTBooks.packs","KTProductSupport@kepner-tregoe.com","Your KT Books Registration Code","ktbooks@kepner-tregoe.com"]
[21,null,null,null,null,"https://www.kepner-tregoe.com/?LinkServID=D35F9B4B-FB6E-D821-DC67CE973484F79C","https://my.sharedbook.com/serve/nm/kt/login.html",null,null,null,0,"https://vimeo.com/kepnertregoe/review/315887045/c186f9940b","https://itunes.apple.com/us/app/kt-books/id1343296030?mt=8","https://play.google.com/store/apps/details?id=com.KTBooks.packs","KTProductSupport@kepner-tregoe.com","Your KT Books Registration Code","ktbooks@kepner-tregoe.com"]
[22,null,null,null,null,"https://www.kepner-tregoe.com/?LinkServID=D35F9B4B-FB6E-D821-DC67CE973484F79C","https://my.sharedbook.com/serve/nm/kt/login.html",null,null,null,0,"https://vimeo.com/kepnertregoe/review/315887045/c186f9940b","https://itunes.apple.com/us/app/kt-books/id1343296030?mt=8","https://play.google.com/store/apps/details?id=com.KTBooks.packs","KTProductSupport@kepner-tregoe.com","Your KT Books Registration Code","ktbooks@kepner-tregoe.com"]
[23,null,null,null,null,"https://www.kepner-tregoe.com/?LinkServID=D35F9B4B-FB6E-D821-DC67CE973484F79C","https://my.sharedbook.com/serve/nm/kt/login.html",null,null,null,0,"https://vimeo.com/kepnertregoe/review/315887045/c186f9940b","https://itunes.apple.com/us/app/kt-books/id1343296030?mt=8","https://play.google.com/store/apps/details?id=com.KTBooks.packs","KTProductSupport@kepner-tregoe.com","Your KT Books Registration Code","ktbooks@kepner-tregoe.com"]
[24,null,null,null,null,"https://www.kepner-tregoe.com/?LinkServID=D35F9B4B-FB6E-D821-DC67CE973484F79C","https://my.sharedbook.com/serve/nm/kt/login.html",null,null,null,0,"https://vimeo.com/kepnertregoe/review/315887045/c186f9940b","https://itunes.apple.com/us/app/kt-books/id1343296030?mt=8","https://play.google.com/store/apps/details?id=com.KTBooks.packs","KTProductSupport@kepner-tregoe.com","Your KT Books Registration Code","ktbooks@kepner-tregoe.com"]
[25,null,null,null,null,"https://www.kepner-tregoe.com/?LinkServID=D35F9B4B-FB6E-D821-DC67CE973484F79C","https://my.sharedbook.com/serve/nm/kt/login.html",null,null,null,0,"https://vimeo.com/kepnertregoe/review/315887045/c186f9940b","https://itunes.apple.com/us/app/kt-books/id1343296030?mt=8","https://play.google.com/store/apps/details?id=com.KTBooks.packs","KTProductSupport@kepner-tregoe.com","Your KT Books Registration Code","ktbooks@kepner-tregoe.com"]
[26,null,null,null,null,"https://www.kepner-tregoe.com/?LinkServID=D35F9B4B-FB6E-D821-DC67CE973484F79C","https://my.sharedbook.com/serve/nm/kt/login.html",null,null,null,0,"https://vimeo.com/kepnertregoe/review/315887045/c186f9940b","https://itunes.apple.com/us/app/kt-books/id1343296030?mt=8","https://play.google.com/store/apps/details?id=com.KTBooks.packs","KTProductSupport@kepner-tregoe.com","Your KT Books Registration Code","ktbooks@kepner-tregoe.com"]
[27,null,null,null,null,"https://www.kepner-tregoe.com/?LinkServID=D35F9B4B-FB6E-D821-DC67CE973484F79C","https://my.sharedbook.com/serve/nm/kt/login.html",null,null,null,0,"https://vimeo.com/kepnertregoe/review/315887045/c186f9940b","https://itunes.apple.com/us/app/kt-books/id1343296030?mt=8","https://play.google.com/store/apps/details?id=com.KTBooks.packs","KTProductSupport@kepner-tregoe.com","Your KT Books Registration Code","ktbooks@kepner-tregoe.com"]
[28,null,null,null,null,"https://www.kepner-tregoe.com/?LinkServID=D35F9B4B-FB6E-D821-DC67CE973484F79C","https://my.sharedbook.com/serve/nm/kt/login.html",null,null,null,0,"https://vimeo.com/kepnertregoe/review/315887045/c186f9940b","https://itunes.apple.com/us/app/kt-books/id1343296030?mt=8","https://play.google.com/store/apps/details?id=com.KTBooks.packs","KTProductSupport@kepner-tregoe.com","Your KT Books Registration Code","ktbooks@kepner-tregoe.com"]
[29,null,null,null,null,"https://www.kepner-tregoe.com/?LinkServID=D35F9B4B-FB6E-D821-DC67CE973484F79C","https://my.sharedbook.com/serve/nm/kt/login.html",null,null,null,0,"https://vimeo.com/kepnertregoe/review/315887045/c186f9940b","https://itunes.apple.com/us/app/kt-books/id1343296030?mt=8","https://play.google.com/store/apps/details?id=com.KTBooks.packs","KTProductSupport@kepner-tregoe.com","Your KT Books Registration Code","ktbooks@kepner-tregoe.com"]
[30,null,null,null,null,"https://www.kepner-tregoe.com/?LinkServID=D35F9B4B-FB6E-D821-DC67CE973484F79C","https://my.sharedbook.com/serve/nm/kt/login.html",null,null,null,0,"https://vimeo.com/kepnertregoe/review/315887045/c186f9940b","https://itunes.apple.com/us/app/kt-books/id1343296030?mt=8","https://play.google.com/store/apps/details?id=com.KTBooks.packs","KTProductSupport@kepner-tregoe.com","Your KT Books Registration Code","ktbooks@kepner-tregoe.com"]
[31,null,null,null,null,"https://www.kepner-tregoe.com/?LinkServID=D35F9B4B-FB6E-D821-DC67CE973484F79C","https://my.sharedbook.com/serve/nm/kt/login.html",null,null,null,0,"https://vimeo.com/kepnertregoe/review/315887045/c186f9940b","https://itunes.apple.com/us/app/kt-books/id1343296030?mt=8","https://play.google.com/store/apps/details?id=com.KTBooks.packs","KTProductSupport@kepner-tregoe.com","Your KT Books Registration Code","ktbooks@kepner-tregoe.com"]
[32,null,null,null,null,"https://www.kepner-tregoe.com/?LinkServID=D35F9B4B-FB6E-D821-DC67CE973484F79C","https://my.sharedbook.com/serve/nm/kt/login.html",null,null,null,0,"https://vimeo.com/kepnertregoe/review/315887045/c186f9940b","https://itunes.apple.com/us/app/kt-books/id1343296030?mt=8","https://play.google.com/store/apps/details?id=com.KTBooks.packs","KTProductSupport@kepner-tregoe.com","Your KT Books Registration Code","ktbooks@kepner-tregoe.com"]
[33,null,null,null,null,"https://www.kepner-tregoe.com/?LinkServID=D35F9B4B-FB6E-D821-DC67CE973484F79C","https://my.sharedbook.com/serve/nm/kt/login.html",null,null,null,0,"https://vimeo.com/kepnertregoe/review/315887045/c186f9940b","https://itunes.apple.com/us/app/kt-books/id1343296030?mt=8","https://play.google.com/store/apps/details?id=com.KTBooks.packs","KTProductSupport@kepner-tregoe.com","Your KT Books Registration Code","ktbooks@kepner-tregoe.com"]
[34,null,null,null,null,"https://www.kepner-tregoe.com/?LinkServID=D35F9B4B-FB6E-D821-DC67CE973484F79C","https://my.sharedbook.com/serve/nm/kt/login.html",null,null,null,0,"https://vimeo.com/kepnertregoe/review/315887045/c186f9940b","https://itunes.apple.com/us/app/kt-books/id1343296030?mt=8","https://play.google.com/store/apps/details?id=com.KTBooks.packs","KTProductSupport@kepner-tregoe.com","Your KT Books Registration Code","ktbooks@kepner-tregoe.com"]
[35,null,null,null,null,"https://www.kepner-tregoe.com/?LinkServID=D35F9B4B-FB6E-D821-DC67CE973484F79C","https://my.sharedbook.com/serve/nm/kt/login.html",null,null,null,0,"https://vimeo.com/kepnertregoe/review/315887045/c186f9940b","https://itunes.apple.com/us/app/kt-books/id1343296030?mt=8","https://play.google.com/store/apps/details?id=com.KTBooks.packs","KTProductSupport@kepner-tregoe.com","Your KT Books Registration Code","ktbooks@kepner-tregoe.com"]
[36,null,null,null,null,"https://www.kepner-tregoe.com/?LinkServID=D35F9B4B-FB6E-D821-DC67CE973484F79C","https://my.sharedbook.com/serve/nm/kt/login.html",null,null,null,0,"https://vimeo.com/kepnertregoe/review/315887045/c186f9940b","https://itunes.apple.com/us/app/kt-books/id1343296030?mt=8","https://play.google.com/store/apps/details?id=com.KTBooks.packs","KTProductSupport@kepner-tregoe.com","Your KT Books Registration Code","ktbooks@kepner-tregoe.com"]
[37,null,null,null,null,"https://www.kepner-tregoe.com/?LinkServID=D35F9B4B-FB6E-D821-DC67CE973484F79C","https://my.sharedbook.com/serve/nm/kt/login.html",null,null,null,0,"https://vimeo.com/kepnertregoe/review/315887045/c186f9940b","https://itunes.apple.com/us/app/kt-books/id1343296030?mt=8","https://play.google.com/store/apps/details?id=com.KTBooks.packs","KTProductSupport@kepner-tregoe.com","Your KT Books Registration Code","ktbooks@kepner-tregoe.com"]
[38,null,null,null,null,"https://www.kepner-tregoe.com/?LinkServID=D35F9B4B-FB6E-D821-DC67CE973484F79C","https://my.sharedbook.com/serve/nm/kt/login.html",null,null,null,0,"https://vimeo.com/kepnertregoe/review/315887045/c186f9940b","https://itunes.apple.com/us/app/kt-books/id1343296030?mt=8","https://play.google.com/store/apps/details?id=com.KTBooks.packs","KTProductSupport@kepner-tregoe.com","Your KT Books Registration Code","ktbooks@kepner-tregoe.com"]
[39,null,null,null,null,"https://www.kepner-tregoe.com/?LinkServID=D35F9B4B-FB6E-D821-DC67CE973484F79C","https://my.sharedbook.com/serve/nm/kt/login.html",null,null,null,0,"https://vimeo.com/kepnertregoe/review/315887045/c186f9940b","https://itunes.apple.com/us/app/kt-books/id1343296030?mt=8","https://play.google.com/store/apps/details?id=com.KTBooks.packs","KTProductSupport@kepner-tregoe.com","Your KT Books Registration Code","ktbooks@kepner-tregoe.com"]
[40,null,null,null,null,"https://www.kepner-tregoe.com/?LinkServID=D35F9B4B-FB6E-D821-DC67CE973484F79C","https://my.sharedbook.com/serve/nm/kt/login.html",null,null,null,0,"https://vimeo.com/kepnertregoe/review/315887045/c186f9940b","https://itunes.apple.com/us/app/kt-books/id1343296030?mt=8","https://play.google.com/store/apps/details?id=com.KTBooks.packs","KTProductSupport@kepner-tregoe.com","Your KT Books Registration Code","ktbooks@kepner-tregoe.com"]
[41,null,null,null,null,"https://www.kepner-tregoe.com/?LinkServID=D35F9B4B-FB6E-D821-DC67CE973484F79C","https://my.sharedbook.com/serve/nm/kt/login.html",null,null,null,0,"https://vimeo.com/kepnertregoe/review/315887045/c186f9940b","https://itunes.apple.com/us/app/kt-books/id1343296030?mt=8","https://play.google.com/store/apps/details?id=com.KTBooks.packs","KTProductSupport@kepner-tregoe.com","Your KT Books Registration Code","ktbooks@kepner-tregoe.com"]
[42,null,null,null,null,"https://www.kepner-tregoe.com/?LinkServID=D35F9B4B-FB6E-D821-DC67CE973484F79C","https://my.sharedbook.com/serve/nm/kt/login.html",null,null,null,0,"https://vimeo.com/kepnertregoe/review/315887045/c186f9940b","https://itunes.apple.com/us/app/kt-books/id1343296030?mt=8","https://play.google.com/store/apps/details?id=com.KTBooks.packs","KTProductSupport@kepner-tregoe.com","Your KT Books Registration Code","ktbooks@kepner-tregoe.com"]
[43,null,null,null,null,"https://www.kepner-tregoe.com/?LinkServID=D35F9B4B-FB6E-D821-DC67CE973484F79C","https://my.sharedbook.com/serve/nm/kt/login.html",null,null,null,0,"https://vimeo.com/kepnertregoe/review/315887045/c186f9940b","https://itunes.apple.com/us/app/kt-books/id1343296030?mt=8","https://play.google.com/store/apps/details?id=com.KTBooks.packs","KTProductSupport@kepner-tregoe.com","Your KT Books Registration Code","ktbooks@kepner-tregoe.com"]
[44,null,null,null,null,"https://www.kepner-tregoe.com/?LinkServID=D35F9B4B-FB6E-D821-DC67CE973484F79C","https://my.sharedbook.com/serve/nm/kt/login.html",null,null,null,0,"https://vimeo.com/kepnertregoe/review/315887045/c186f9940b","https://itunes.apple.com/us/app/kt-books/id1343296030?mt=8","https://play.google.com/store/apps/details?id=com.KTBooks.packs","KTProductSupport@kepner-tregoe.com","Your KT Books Registration Code","ktbooks@kepner-tregoe.com"]
[45,null,null,null,null,"https://www.kepner-tregoe.com/?LinkServID=D35F9B4B-FB6E-D821-DC67CE973484F79C","https://my.sharedbook.com/serve/nm/kt/login.html",null,null,null,0,"https://vimeo.com/kepnertregoe/review/315887045/c186f9940b","https://itunes.apple.com/us/app/kt-books/id1343296030?mt=8","https://play.google.com/store/apps/details?id=com.KTBooks.packs","KTProductSupport@kepner-tregoe.com","Your KT Books Registration Code","ktbooks@kepner-tregoe.com"]
[46,null,null,null,null,"https://www.kepner-tregoe.com/?LinkServID=D35F9B4B-FB6E-D821-DC67CE973484F79C","https://my.sharedbook.com/serve/nm/kt/login.html",null,null,null,0,"https://vimeo.com/kepnertregoe/review/315887045/c186f9940b","https://itunes.apple.com/us/app/kt-books/id1343296030?mt=8","https://play.google.com/store/apps/details?id=com.KTBooks.packs","KTProductSupport@kepner-tregoe.com","Your KT Books Registration Code","ktbooks@kepner-tregoe.com"]
[null,null,null,null,null,null,null,null,null,null,0,"https://vimeo.com/kepnertregoe/review/315887045/c186f9940b","https://itunes.apple.com/us/app/kt-books/id1343296030?mt=8","https://play.google.com/store/apps/details?id=com.KTBooks.packs","KTProductSupport@kepner-tregoe.com"]
[null,null,null,null,null,null,null,null,null,null,0,"https://vimeo.com/kepnertregoe/review/315887045/c186f9940b","https://itunes.apple.com/us/app/kt-books/id1343296030?mt=8","https://play.google.com/store/apps/details?id=com.KTBooks.packs","KTProductSupport@kepner-tregoe.com"]
[null,null,null,null,null,null,null,null,null,null,0,"https://vimeo.com/kepnertregoe/review/315887045/c186f9940b","https://itunes.apple.com/us/app/kt-books/id1343296030?mt=8","https://play.google.com/store/apps/details?id=com.KTBooks.packs","KTProductSupport@kepner-tregoe.com"]
[null,null,null,null,null,null,null,null,null,null,0,"https://vimeo.com/kepnertregoe/review/315887045/c186f9940b","https://itunes.apple.com/us/app/kt-books/id1343296030?mt=8","https://play.google.com/store/apps/details?id=com.KTBooks.packs","KTProductSupport@kepner-tregoe.com"]
[null,null,null,null,null,null,null,null,null,null,0,"https://vimeo.com/kepnertregoe/review/315887045/c186f9940b","https://itunes.apple.com/us/app/kt-books/id1343296030?mt=8","https://play.google.com/store/apps/details?id=com.KTBooks.packs","KTProductSupport@kepner-tregoe.com"]
[null,null,null,null,null,null,null,null,null,null,0,"https://vimeo.com/kepnertregoe/review/315887045/c186f9940b","https://itunes.apple.com/us/app/kt-books/id1343296030?mt=8","https://play.google.com/store/apps/details?id=com.KTBooks.packs","KTProductSupport@kepner-tregoe.com"]
[null,null,null,null,null,null,null,null,null,null,0,"https://vimeo.com/kepnertregoe/review/315887045/c186f9940b","https://itunes.apple.com/us/app/kt-books/id1343296030?mt=8","https://play.google.com/store/apps/details?id=com.KTBooks.packs","KTProductSupport@kepner-tregoe.com"]
[null,null,null,null,null,null,null,null,null,null,0,"https://vimeo.com/kepnertregoe/review/315887045/c186f9940b","https://itunes.apple.com/us/app/kt-books/id1343296030?mt=8","https://play.google.com/store/apps/details?id=com.KTBooks.packs","KTProductSupport@kepner-tregoe.com"]
[null,null,null,null,null,null,null,null,null,null,0,"https://vimeo.com/kepnertregoe/review/315887045/c186f9940b","https://itunes.apple.com/us/app/kt-books/id1343296030?mt=8","https://play.google.com/store/apps/details?id=com.KTBooks.packs","KTProductSupport@kepner-tregoe.com"]
[null,null,null,null,null,null,null,null,null,null,0,"https://vimeo.com/kepnertregoe/review/315887045/c186f9940b","https://itunes.apple.com/us/app/kt-books/id1343296030?mt=8","https://play.google.com/store/apps/details?id=com.KTBooks.packs","KTProductSupport@kepner-tregoe.com"]
[null,null,null,null,null,null,null,null,null,null,0,"https://vimeo.com/kepnertregoe/review/315887045/c186f9940b","https://itunes.apple.com/us/app/kt-books/id1343296030?mt=8","https://play.google.com/store/apps/details?id=com.KTBooks.packs","KTProductSupport@kepner-tregoe.com"]
[null,null,null,null,null,null,null,null,null,null,0,"https://vimeo.com/kepnertregoe/review/315887045/c186f9940b","https://itunes.apple.com/us/app/kt-books/id1343296030?mt=8","https://play.google.com/store/apps/details?id=com.KTBooks.packs","KTProductSupport@kepner-tregoe.com"]
[null,null,null,null,null,null,null,null,null,null,0,"https://vimeo.com/kepnertregoe/review/315887045/c186f9940b","https://itunes.apple.com/us/app/kt-books/id1343296030?mt=8","https://play.google.com/store/apps/details?id=com.KTBooks.packs","KTProductSupport@kepner-tregoe.com"]
[null,null,null,null,null,null,null,null,null,null,0,"https://vimeo.com/kepnertregoe/review/315887045/c186f9940b","https://itunes.apple.com/us/app/kt-books/id1343296030?mt=8","https://play.google.com/store/apps/details?id=com.KTBooks.packs","KTProductSupport@kepner-tregoe.com"]
[null,null,null,null,null,null,null,null,null,null,0,"https://vimeo.com/kepnertregoe/review/315887045/c186f9940b","https://itunes.apple.com/us/app/kt-books/id1343296030?mt=8","https://play.google.com/store/apps/details?id=com.KTBooks.packs","KTProductSupport@kepner-tregoe.com"]
[null,null,null,null,null,null,null,null,null,null,0,"https://vimeo.com/kepnertregoe/review/315887045/c186f9940b","https://itunes.apple.com/us/app/kt-books/id1343296030?mt=8","https://play.google.com/store/apps/details?id=com.KTBooks.packs","KTProductSupport@kepner-tregoe.com"]
[null,null,null,null,null,null,null,null,null,null,0,"https://vimeo.com/kepnertregoe/review/315887045/c186f9940b","https://itunes.apple.com/us/app/kt-books/id1343296030?mt=8","https://play.google.com/store/apps/details?id=com.KTBooks.packs","KTProductSupport@kepner-tregoe.com"]
[null,null,null,null,null,null,null,null,null,null,0,"https://vimeo.com/kepnertregoe/review/315887045/c186f9940b","https://itunes.apple.com/us/app/kt-books/id1343296030?mt=8","https://play.google.com/store/apps/details?id=com.KTBooks.packs","KTProductSupport@kepner-tregoe.com"]
[null,null,null,null,null,null,null,null,null,null,0,"https://vimeo.com/kepnertregoe/review/315887045/c186f9940b","https://itunes.apple.com/us/app/kt-books/id1343296030?mt=8","https://play.google.com/store/apps/details?id=com.KTBooks.packs","KTProductSupport@kepner-tregoe.com"]
[null,null,null,null,null,null,null,null,null,null,0,"https://vimeo.com/kepnertregoe/review/315887045/c186f9940b","https://itunes.apple.com/us/app/kt-books/id1343296030?mt=8","https://play.google.com/store/apps/details?id=com.KTBooks.packs","KTProductSupport@kepner-tregoe.com"]
[null,null,null,null,null,null,null,null,null,null,{"$f":"K81","v":0},{"$f":"L81","v":"https://vimeo.com/kepnertregoe/review/315887045/c186f9940b"},{"$f":"M81","v":"https://itunes.apple.com/us/app/kt-books/id1343296030?mt=8"},{"$f":"N81","v":"https://play.google.com/store/apps/details?id=com.KTBooks.packs"},{"$f":"O81","v":"KTProductSupport@kepner-tregoe.com"}]
[null,null,null,null,null,null,null,null,null,null,0,"https://vimeo.com/kepnertregoe/review/315887045/c186f9940b","https://itunes.apple.com/us/app/kt-books/id1343296030?mt=8","https://play.google.com/store/apps/details?id=com.KTBooks.packs","KTProductSupport@kepner-tregoe.com"]
[null,null,null,null,null,null,null,null,null,null,0,"https://vimeo.com/kepnertregoe/review/315887045/c186f9940b","https://itunes.apple.com/us/app/kt-books/id1343296030?mt=8","https://play.google.com/store/apps/details?id=com.KTBooks.packs","KTProductSupport@kepner-tregoe.com"]
[null,null,null,null,null,null,null,null,null,null,0,"https://vimeo.com/kepnertregoe/review/315887045/c186f9940b","https://itunes.apple.com/us/app/kt-books/id1343296030?mt=8","https://play.google.com/store/apps/details?id=com.KTBooks.packs","KTProductSupport@kepner-tregoe.com"]
[null,null,null,null,null,null,null,null,null,null,0,"https://vimeo.com/kepnertregoe/review/315887045/c186f9940b","https://itunes.apple.com/us/app/kt-books/id1343296030?mt=8","https://play.google.com/store/apps/details?id=com.KTBooks.packs","KTProductSupport@kepner-tregoe.com"]
[null,null,null,null,null,null,null,null,null,null,0,"https://vimeo.com/kepnertregoe/review/315887045/c186f9940b","https://itunes.apple.com/us/app/kt-books/id1343296030?mt=8","https://play.google.com/store/apps/details?id=com.KTBooks.packs","KTProductSupport@kepner-tregoe.com"]
[null,null,null,null,null,null,null,null,null,null,0,"https://vimeo.com/kepnertregoe/review/315887045/c186f9940b","https://itunes.apple.com/us/app/kt-books/id1343296030?mt=8","https://play.google.com/store/apps/details?id=com.KTBooks.packs","KTProductSupport@kepner-tregoe.com"]
[null,null,null,null,null,null,null,null,null,null,0,"https://vimeo.com/kepnertregoe/review/315887045/c186f9940b","https://itunes.apple.com/us/app/kt-books/id1343296030?mt=8","https://play.google.com/store/apps/details?id=com.KTBooks.packs","KTProductSupport@kepner-tregoe.com"]
[null,null,null,null,null,null,null,null,null,null,0,"https://vimeo.com/kepnertregoe/review/315887045/c186f9940b","https://itunes.apple.com/us/app/kt-books/id1343296030?mt=8","https://play.google.com/store/apps/details?id=com.KTBooks.packs","KTProductSupport@kepner-tregoe.com"]
[null,null,null,null,null,null,null,null,null,null,0,"https://vimeo.com/kepnertregoe/review/315887045/c186f9940b","https://itunes.apple.com/us/app/kt-books/id1343296030?mt=8","https://play.google.com/store/apps/details?id=com.KTBooks.packs","KTProductSupport@kepner-tregoe.com"]
[null,null,null,null,null,null,null,null,null,null,0,"https://vimeo.com/kepnertregoe/review/315887045/c186f9940b","https://itunes.apple.com/us/app/kt-books/id1343296030?mt=8","https://play.google.com/store/apps/details?id=com.KTBooks.packs","KTProductSupport@kepner-tregoe.com"]
[null,null,null,null,null,null,null,null,null,null,0,"https://vimeo.com/kepnertregoe/review/315887045/c186f9940b","https://itunes.apple.com/us/app/kt-books/id1343296030?mt=8","https://play.google.com/store/apps/details?id=com.KTBooks.packs","KTProductSupport@kepner-tregoe.com"]
[null,null,null,null,null,null,null,null,null,null,0,"https://vimeo.com/kepnertregoe/review/315887045/c186f9940b","https://itunes.apple.com/us/app/kt-books/id1343296030?mt=8","https://play.google.com/store/apps/details?id=com.KTBooks.packs","KTProductSupport@kepner-tregoe.com"]
[null,null,null,null,null,null,null,null,null,null,0,"https://vimeo.com/kepnertregoe/review/315887045/c186f9940b","https://itunes.apple.com/us/app/kt-books/id1343296030?mt=8","https://play.google.com/store/apps/details?id=com.KTBooks.packs","KTProductSupport@kepner-tregoe.com"]
[null,null,null,null,null,null,null,null,null,null,0,"https://vimeo.com/kepnertregoe/review/315887045/c186f9940b","https://itunes.apple.com/us/app/kt-books/id1343296030?mt=8","https://play.google.com/store/apps/details?id=com.KTBooks.packs","KTProductSupport@kepner-tregoe.com"]
[null,null,null,null,null,null,null,null,null,null,0,"https://vimeo.com/kepnertregoe/review/315887045/c186f9940b","https://itunes.apple.com/us/app/kt-books/id1343296030?mt=8","https://play.google.com/store/apps/details?id=com.KTBooks.packs","KTProductSupport@kepner-tregoe.com"]
[null,null,null,null,null,null,null,null,null,null,0,"https://vimeo.com/kepnertregoe/review/315887045/c186f9940b","https://itunes.apple.com/us/app/kt-books/id1343296030?mt=8","https://play.google.com/store/apps/details?id=com.KTBooks.packs","KTProductSupport@kepner-tregoe.com"]
[null,null,null,null,null,null,null,null,null,null,0,"https://vimeo.com/kepnertregoe/review/315887045/c186f9940b","https://itunes.apple.com/us/app/kt-books/id1343296030?mt=8","https://play.google.com/store/apps/details?id=com.KTBooks.packs","KTProductSupport@kepner-tregoe.com"]
[null,null,null,null,null,null,null,null,null,null,0,"https://vimeo.com/kepnertregoe/review/315887045/c186f9940b","https://itunes.apple.com/us/app/kt-books/id1343296030?mt=8","https://play.google.com/store/apps/details?id=com.KTBooks.packs","KTProductSupport@kepner-tregoe.com"]
[null,null,null,null,null,null,null,null,null,null,0,"https://vimeo.com/kepnertregoe/review/315887045/c186f9940b","https://itunes.apple.com/us/app/kt-books/id1343296030?mt=8","https://play.google.com/store/apps/details?id=com.KTBooks.packs","KTProductSupport@kepner-tregoe.com"]
[null,null,null,null,null,null,null,null,null,null,0,"https://vimeo.com/kepnertregoe/review/315887045/c186f9940b","https://itunes.apple.com/us/app/kt-books/id1343296030?mt=8","https://play.google.com/store/apps/details?id=com.KTBooks.packs","KTProductSupport@kepner-tregoe.com"]
[null,null,null,null,null,null,null,null,null,null,0,"https://vimeo.com/kepnertregoe/review/315887045/c186f9940b","https://itunes.apple.com/us/app/kt-books/id1343296030?mt=8","https://play.google.com/store/apps/details?id=com.KTBooks.packs","KTProductSupport@kepner-tregoe.com"]
[null,null,null,null,null,null,null,null,null,null,0,"https://vimeo.com/kepnertregoe/review/315887045/c186f9940b","https://itunes.apple.com/us/app/kt-books/id1343296030?mt=8","https://play.google.com/store/apps/details?id=com.KTBooks.packs","KTProductSupport@kepner-tregoe.com"]
[null,null,null,null,null,null,null,null,null,null,0,"https://vimeo.com/kepnertregoe/review/315887045/c186f9940b","https://itunes.apple.com/us/app/kt-books/id1343296030?mt=8","https://play.google.com/store/apps/details?id=com.KTBooks.packs","KTProductSupport@kepner-tregoe.com"]
[null,null,null,null,null,null,null,null,null,null,0,"https://vimeo.com/kepnertregoe/review/315887045/c186f9940b","https://itunes.apple.com/us/app/kt-books/id1343296030?mt=8","https://play.google.com/store/apps/details?id=com.KTBooks.packs","KTProductSupport@kepner-tregoe.com"]
[null,null,null,null,null,null,null,null,null,null,0,"https://vimeo.com/kepnertregoe/review/315887045/c186f9940b","https://itunes.apple.com/us/app/kt-books/id1343296030?mt=8","https://play.google.com/store/apps/details?id=com.KTBooks.packs","KTProductSupport@kepner-tregoe.com"]
[null,null,null,null,null,null,null,null,null,null,0,"https://vimeo.com/kepnertregoe/review/315887045/c186f9940b","https://itunes.apple.com/us/app/kt-books/id1343296030?mt=8","https://play.google.com/store/apps/details?id=com.KTBooks.packs","KTProductSupport@kepner-tregoe.com"]
[null,null,null,null,null,null,null,null,null,null,0,"https://vimeo.com/kepnertregoe/review/315887045/c186f9940b","https://itunes.apple.com/us/app/kt-books/id1343296030?mt=8","https://play.google.com/store/apps/details?id=com.KTBooks.packs","KTProductSupport@kepner-tregoe.com"]
[null,null,null,null,null,null,null,null,null,null,0,"https://vimeo.com/kepnertregoe/review/315887045/c186f9940b","https://itunes.apple.com/us/app/kt-books/id1343296030?mt=8","https://play.google.com/store/apps/details?id=com.KTBooks.packs","KTProductSupport@kepner-tregoe.com"]
[null,null,null,null,null,null,null,null,null,null,0,"https://vimeo.com/kepnertregoe/review/315887045/c186f9940b","https://itunes.apple.com/us/app/kt-books/id1343296030?mt=8","https://play.google.com/store/apps/details?id=com.KTBooks.packs","KTProductSupport@kepner-tregoe.com"]
[null,null,null,null,null,null,null,null,null,null,0,"https://vimeo.com/kepnertregoe/review/315887045/c186f9940b","https://itunes.apple.com/us/app/kt-books/id1343296030?mt=8","https://play.google.com/store/apps/details?id=com.KTBooks.packs","KTProductSupport@kepner-tregoe.com"]
[null,null,null,null,null,null,null,null,null,null,0,"https://vimeo.com/kepnertregoe/review/315887045/c186f9940b","https://itunes.apple.com/us/app/kt-books/id1343296030?mt=8","https://play.google.com/store/apps/details?id=com.KTBooks.packs","KTProductSupport@kepner-tregoe.com"]
[null,null,null,null,null,null,null,null,null,null,0,"https://vimeo.com/kepnertregoe/review/315887045/c186f9940b","https://itunes.apple.com/us/app/kt-books/id1343296030?mt=8","https://play.google.com/store/apps/details?id=com.KTBooks.packs","KTProductSupport@kepner-tregoe.com"]
[null,null,null,null,null,null,null,null,null,null,0,"https://vimeo.com/kepnertregoe/review/315887045/c186f9940b","https://itunes.apple.com/us/app/kt-books/id1343296030?mt=8","https://play.google.com/store/apps/details?id=com.KTBooks.packs","KTProductSupport@kepner-tregoe.com"]
[null,null,null,null,null,null,null,null,null,null,0,"https://vimeo.com/kepnertregoe/review/315887045/c186f9940b","https://itunes.apple.com/us/app/kt-books/id1343296030?mt=8","https://play.google.com/store/apps/details?id=com.KTBooks.packs","KTProductSupport@kepner-tregoe.com"]
[null,null,null,null,null,null,null,null,null,null,0,"https://vimeo.com/kepnertregoe/review/315887045/c186f9940b","https://itunes.apple.com/us/app/kt-books/id1343296030?mt=8","https://play.google.com/store/apps/details?id=com.KTBooks.packs","KTProductSupport@kepner-tregoe.com"]
[null,null,null,null,null,null,null,null,null,null,0,"https://vimeo.com/kepnertregoe/review/315887045/c186f9940b","https://itunes.apple.com/us/app/kt-books/id1343296030?mt=8","https://play.google.com/store/apps/details?id=com.KTBooks.packs","KTProductSupport@kepner-tregoe.com"]
[null,null,null,null,null,null,null,null,null,null,0,"https://vimeo.com/kepnertregoe/review/315887045/c186f9940b","https://itunes.apple.com/us/app/kt-books/id1343296030?mt=8","https://play.google.com/store/apps/details?id=com.KTBooks.packs","KTProductSupport@kepner-tregoe.com"]
[null,null,null,null,null,null,null,null,null,null,0,"https://vimeo.com/kepnertregoe/review/315887045/c186f9940b","https://itunes.apple.com/us/app/kt-books/id1343296030?mt=8","https://play.google.com/store/apps/details?id=com.KTBooks.packs","KTProductSupport@kepner-tregoe.com"]
[null,null,null,null,null,null,null,null,null,null,0,"https://vimeo.com/kepnertregoe/review/315887045/c186f9940b","https://itunes.apple.com/us/app/kt-books/id1343296030?mt=8","https://play.google.com/store/apps/details?id=com.KTBooks.packs","KTProductSupport@kepner-tregoe.com"]
[null,null,null,null,null,null,null,null,null,null,0,"https://vimeo.com/kepnertregoe/review/315887045/c186f9940b","https://itunes.apple.com/us/app/kt-books/id1343296030?mt=8","https://play.google.com/store/apps/details?id=com.KTBooks.packs","KTProductSupport@kepner-tregoe.com"]
[null,null,null,null,null,null,null,null,null,null,0,"https://vimeo.com/kepnertregoe/review/315887045/c186f9940b","https://itunes.apple.com/us/app/kt-books/id1343296030?mt=8","https://play.google.com/store/apps/details?id=com.KTBooks.packs","KTProductSupport@kepner-tregoe.com"]
[null,null,null,null,null,null,null,null,null,null,0,"https://vimeo.com/kepnertregoe/review/315887045/c186f9940b","https://itunes.apple.com/us/app/kt-books/id1343296030?mt=8","https://play.google.com/store/apps/details?id=com.KTBooks.packs","KTProductSupport@kepner-tregoe.com"]
[null,null,null,null,null,null,null,null,null,null,0,"https://vimeo.com/kepnertregoe/review/315887045/c186f9940b","https://itunes.apple.com/us/app/kt-books/id1343296030?mt=8","https://play.google.com/store/apps/details?id=com.KTBooks.packs","KTProductSupport@kepner-tregoe.com"]
[null,null,null,null,null,null,null,null,null,null,0,"https://vimeo.com/kepnertregoe/review/315887045/c186f9940b","https://itunes.apple.com/us/app/kt-books/id1343296030?mt=8","https://play.google.com/store/apps/details?id=com.KTBooks.packs","KTProductSupport@kepner-tregoe.com"]
[null,null,null,null,null,null,null,null,null,null,0,"https://vimeo.com/kepnertregoe/review/315887045/c186f9940b","https://itunes.apple.com/us/app/kt-books/id1343296030?mt=8","https://play.google.com/store/apps/details?id=com.KTBooks.packs","KTProductSupport@kepner-tregoe.com"]
[null,null,null,null,null,null,null,null,null,null,0,"https://vimeo.com/kepnertregoe/review/315887045/c186f9940b","https://itunes.apple.com/us/app/kt-books/id1343296030?mt=8","https://play.google.com/store/apps/details?id=com.KTBooks.packs","KTProductSupport@kepner-tregoe.com"]
[null,null,null,null,null,null,null,null,null,null,0,"https://vimeo.com/kepnertregoe/review/315887045/c186f9940b","https://itunes.apple.com/us/app/kt-books/id1343296030?mt=8","https://play.google.com/store/apps/details?id=com.KTBooks.packs","KTProductSupport@kepner-tregoe.com"]
[null,null,null,null,null,null,null,null,null,null,0,"https://vimeo.com/kepnertregoe/review/315887045/c186f9940b","https://itunes.apple.com/us/app/kt-books/id1343296030?mt=8","https://play.google.com/store/apps/details?id=com.KTBooks.packs","KTProductSupport@kepner-tregoe.com"]
[null,null,null,null,null,null,null,null,null,null,0,"https://vimeo.com/kepnertregoe/review/315887045/c186f9940b","https://itunes.apple.com/us/app/kt-books/id1343296030?mt=8","https://play.google.com/store/apps/details?id=com.KTBooks.packs","KTProductSupport@kepner-tregoe.com"]
[null,null,null,null,null,null,null,null,null,null,0,"https://vimeo.com/kepnertregoe/review/315887045/c186f9940b","https://itunes.apple.com/us/app/kt-books/id1343296030?mt=8","https://play.google.com/store/apps/details?id=com.KTBooks.packs","KTProductSupport@kepner-tregoe.com"]
[null,null,null,null,null,null,null,null,null,null,0,"https://vimeo.com/kepnertregoe/review/315887045/c186f9940b","https://itunes.apple.com/us/app/kt-books/id1343296030?mt=8","https://play.google.com/store/apps/details?id=com.KTBooks.packs","KTProductSupport@kepner-tregoe.com"]
[null,null,null,null,null,null,null,null,null,null,0,"https://vimeo.com/kepnertregoe/review/315887045/c186f9940b","https://itunes.apple.com/us/app/kt-books/id1343296030?mt=8","https://play.google.com/store/apps/details?id=com.KTBooks.packs","KTProductSupport@kepner-tregoe.com"]
[null,null,null,null,null,null,null,null,null,null,0,"https://vimeo.com/kepnertregoe/review/315887045/c186f9940b","https://itunes.apple.com/us/app/kt-books/id1343296030?mt=8","https://play.google.com/store/apps/details?id=com.KTBooks.packs","KTProductSupport@kepner-tregoe.com"]
[null,null,null,null,null,null,null,null,null,null,0,"https://vimeo.com/kepnertregoe/review/315887045/c186f9940b","https://itunes.apple.com/us/app/kt-books/id1343296030?mt=8","https://play.google.com/store/apps/details?id=com.KTBooks.packs","KTProductSupport@kepner-tregoe.com"]
[null,null,null,null,null,null,null,null,null,null,0,"https://vimeo.com/kepnertregoe/review/315887045/c186f9940b","https://itunes.apple.com/us/app/kt-books/id1343296030?mt=8","https://play.google.com/store/apps/details?id=com.KTBooks.packs","KTProductSupport@kepner-tregoe.com"]
[null,null,null,null,null,null,null,null,null,null,0,"https://vimeo.com/kepnertregoe/review/315887045/c186f9940b","https://itunes.apple.com/us/app/kt-books/id1343296030?mt=8","https://play.google.com/store/apps/details?id=com.KTBooks.packs","KTProductSupport@kepner-tregoe.com"]
[null,null,null,null,null,null,null,null,null,null,0,"https://vimeo.com/kepnertregoe/review/315887045/c186f9940b","https://itunes.apple.com/us/app/kt-books/id1343296030?mt=8","https://play.google.com/store/apps/details?id=com.KTBooks.packs","KTProductSupport@kepner-tregoe.com"]
[null,null,null,null,null,null,null,null,null,null,0,"https://vimeo.com/kepnertregoe/review/315887045/c186f9940b","https://itunes.apple.com/us/app/kt-books/id1343296030?mt=8","https://play.google.com/store/apps/details?id=com.KTBooks.packs","KTProductSupport@kepner-tregoe.com"]
[null,null,null,null,null,null,null,null,null,null,0,"https://vimeo.com/kepnertregoe/review/315887045/c186f9940b","https://itunes.apple.com/us/app/kt-books/id1343296030?mt=8","https://play.google.com/store/apps/details?id=com.KTBooks.packs","KTProductSupport@kepner-tregoe.com"]
[null,null,null,null,null,null,null,null,null,null,0,"https://vimeo.com/kepnertregoe/review/315887045/c186f9940b","https://itunes.apple.com/us/app/kt-books/id1343296030?mt=8","https://play.google.com/store/apps/details?id=com.KTBooks.packs","KTProductSupport@kepner-tregoe.com"]
[null,null,null,null,null,null,null,null,null,null,0,"https://vimeo.com/kepnertregoe/review/315887045/c186f9940b","https://itunes.apple.com/us/app/kt-books/id1343296030?mt=8","https://play.google.com/store/apps/details?id=com.KTBooks.packs","KTProductSupport@kepner-tregoe.com"]
[null,null,null,null,null,null,null,null,null,null,0,"https://vimeo.com/kepnertregoe/review/315887045/c186f9940b","https://itunes.apple.com/us/app/kt-books/id1343296030?mt=8","https://play.google.com/store/apps/details?id=com.KTBooks.packs","KTProductSupport@kepner-tregoe.com"]
[null,null,null,null,null,null,null,null,null,null,0,"https://vimeo.com/kepnertregoe/review/315887045/c186f9940b","https://itunes.apple.com/us/app/kt-books/id1343296030?mt=8","https://play.google.com/store/apps/details?id=com.KTBooks.packs","KTProductSupport@kepner-tregoe.com"]
[null,null,null,null,null,null,null,null,null,null,{"$f":"K145","v":0},{"$f":"L145","v":"https://vimeo.com/kepnertregoe/review/315887045/c186f9940b"},{"$f":"M145","v":"https://itunes.apple.com/us/app/kt-books/id1343296030?mt=8"},{"$f":"N145","v":"https://play.google.com/store/apps/details?id=com.KTBooks.packs"},{"$f":"O145","v":"KTProductSupport@kepner-tregoe.com"}]
[null,null,null,null,null,null,null,null,null,null,0,"https://vimeo.com/kepnertregoe/review/315887045/c186f9940b","https://itunes.apple.com/us/app/kt-books/id1343296030?mt=8","https://play.google.com/store/apps/details?id=com.KTBooks.packs","KTProductSupport@kepner-tregoe.com"]
[null,null,null,null,null,null,null,null,null,null,0,"https://vimeo.com/kepnertregoe/review/315887045/c186f9940b","https://itunes.apple.com/us/app/kt-books/id1343296030?mt=8","https://play.google.com/store/apps/details?id=com.KTBooks.packs","KTProductSupport@kepner-tregoe.com"]
[null,null,null,null,null,null,null,null,null,null,0,"https://vimeo.com/kepnertregoe/review/315887045/c186f9940b","https://itunes.apple.com/us/app/kt-books/id1343296030?mt=8","https://play.google.com/store/apps/details?id=com.KTBooks.packs","KTProductSupport@kepner-tregoe.com"]
[null,null,null,null,null,null,null,null,null,null,0,"https://vimeo.com/kepnertregoe/review/315887045/c186f9940b","https://itunes.apple.com/us/app/kt-books/id1343296030?mt=8","https://play.google.com/store/apps/details?id=com.KTBooks.packs","KTProductSupport@kepner-tregoe.com"]
[null,null,null,null,null,null,null,null,null,null,0,"https://vimeo.com/kepnertregoe/review/315887045/c186f9940b","https://itunes.apple.com/us/app/kt-books/id1343296030?mt=8","https://play.google.com/store/apps/details?id=com.KTBooks.packs","KTProductSupport@kepner-tregoe.com"]
[null,null,null,null,null,null,null,null,null,null,0,"https://vimeo.com/kepnertregoe/review/315887045/c186f9940b","https://itunes.apple.com/us/app/kt-books/id1343296030?mt=8","https://play.google.com/store/apps/details?id=com.KTBooks.packs","KTProductSupport@kepner-tregoe.com"]
[null,null,null,null,null,null,null,null,null,null,0,"https://vimeo.com/kepnertregoe/review/315887045/c186f9940b","https://itunes.apple.com/us/app/kt-books/id1343296030?mt=8","https://play.google.com/store/apps/details?id=com.KTBooks.packs","KTProductSupport@kepner-tregoe.com"]
[null,null,null,null,null,null,null,null,null,null,0,"https://vimeo.com/kepnertregoe/review/315887045/c186f9940b","https://itunes.apple.com/us/app/kt-books/id1343296030?mt=8","https://play.google.com/store/apps/details?id=com.KTBooks.packs","KTProductSupport@kepner-tregoe.com"]
[null,null,null,null,null,null,null,null,null,null,0,"https://vimeo.com/kepnertregoe/review/315887045/c186f9940b","https://itunes.apple.com/us/app/kt-books/id1343296030?mt=8","https://play.google.com/store/apps/details?id=com.KTBooks.packs","KTProductSupport@kepner-tregoe.com"]
[null,null,null,null,null,null,null,null,null,null,0,"https://vimeo.com/kepnertregoe/review/315887045/c186f9940b","https://itunes.apple.com/us/app/kt-books/id1343296030?mt=8","https://play.google.com/store/apps/details?id=com.KTBooks.packs","KTProductSupport@kepner-tregoe.com"]
[null,null,null,null,null,null,null,null,null,null,0,"https://vimeo.com/kepnertregoe/review/315887045/c186f9940b","https://itunes.apple.com/us/app/kt-books/id1343296030?mt=8","https://play.google.com/store/apps/details?id=com.KTBooks.packs","KTProductSupport@kepner-tregoe.com"]